bitfinex/quotes_ETHUSD_20220103
["timestamp","ask_amount","ask_price","bid_price","bid_amount"]
[1641247360679,2.7,3724.5,3724.4,3.26152799]
[1641247360880,2.7,3724.5,3724.4,3.23138904]
[1641247361487,2.7,3724.5,3724.4,4.23138904]
[1641247361885,2.7,3724.5,3724.4,4.33674704]
[1641247361886,3.73207914,3724.5,3724.4,4.33674704]
[1641247362486,3.73207914,3724.5,3724.4,1.90389373]
[1641247362687,2.7,3724.5,3724.4,3.32369663]
[1641247363086,2.7,3724.5,3724.4,0.90389373]
[1641247363287,2.7,3724.5,3724.4,0.60389373]
[1641247363642,2.7,3724.5,3724.4,0.90389373]
[1641247363846,3.73897825,3724.5,3724.4,18.93815641]
[1641247364046,3.73897825,3724.5,3724.4,20.23815641]
[1641247364845,2.7,3724.5,3724.4,20.23815641]
[1641247365046,2.7,3724.5,3724.4,23.34836615]
[1641247367052,2.7,3724.5,3724.4,21.58031641]
[1641247370390,2.7,3724.5,3724.4,22.25129521]
[1641247372142,2.7,3724.5,3724.4,22.14593721]
[1641247372751,2.7,3724.5,3724.4,22.44593721]
[1641247372951,6.496e-05,3724.8,3724.6,0.67084]
[1641247373154,6.496e-05,3724.8,3724.7,8.95585108]
[1641247373451,0.0593,3727.2,3724.8,15.78]
[1641247373651,0.0593,3727.2,3725.9,2.0123]
[1641247373854,0.01534744,3727.1,3726.0,16.17]
[1641247374049,0.01534744,3727.1,3726.1,1.0]
[1641247374250,0.01477901,3727.0,3726.2,0.39]
[1641247374755,0.01421059,3726.9,3726.5,16.45076]
[1641247374987,0.01421059,3726.9,3726.6,0.39]
[1641247375183,0.01364217,3726.8,3726.6,1.39]
[1641247375487,0.01307374,3726.7,3726.6,1.39]
[1641247375688,0.01307374,3726.7,3726.6,0.39]
[1641247376791,0.01307374,3726.7,3726.6,2.89710582]
[1641247377187,0.01307374,3726.7,3726.6,3.89710582]
[1641247377588,0.01307374,3726.7,3726.6,1.39]
[1641247377990,0.01307374,3726.7,3726.6,16.17]
[1641247378390,0.01307374,3726.7,3726.6,17.17]
[1641247379039,0.01307374,3726.7,3726.6,17.84067]
[1641247379934,0.01307374,3726.7,3726.6,50.15974214]
[1641247381935,0.01307374,3726.7,3726.6,33.70907214]
[1641247382233,0.01307374,3726.7,3726.6,49.48907214]
[1641247382893,0.01307374,3726.7,3726.6,48.48907214]
[1641247384299,0.01307374,3726.7,3726.6,49.48907214]
[1641247384696,0.01307374,3726.7,3726.6,49.59443114]
[1641247385596,0.02773704,3727.4,3726.7,6.75]
[1641247385895,0.00341054,3727.3,3726.8,16.17]
[1641247386331,0.00284212,3727.2,3726.8,16.17]
[1641247386632,0.0022737,3727.1,3726.8,16.17]
[1641247386834,0.0022737,3727.1,3726.9,0.67066]
[1641247387031,0.02773704,3727.4,3727.0,0.39]
[1641247387232,4.4539499,3728.4,3727.0,0.39]
[1641247387233,4.9539499,3728.4,3727.0,0.39]
[1641247387434,4.4539499,3728.4,3727.4,1.16842186]
[1641247387734,0.06466263,3728.2,3727.4,1.16842186]
[1641247388133,0.00795793,3728.1,3727.4,1.16842186]
[1641247388533,0.00738951,3728.0,3727.4,1.16842186]
[1641247388733,0.00738951,3728.0,3727.0,0.39]
[1641247389033,0.00682108,3727.9,3727.4,0.004332]
[1641247389437,0.00625266,3727.8,3727.4,0.004332]
[1641247389897,0.00568424,3727.7,3727.4,0.004332]
[1641247390294,0.00511581,3727.6,3727.4,0.004332]
[1641247390693,0.00454739,3727.5,3727.4,0.004332]
[1641247392295,0.46330951,3727.5,3727.4,0.004332]
[1641247398095,0.46330951,3727.5,3727.4,7.494332]
[1641247398493,0.46330951,3727.5,3727.4,8.794332]
[1641247399293,0.46330951,3727.5,3727.4,24.574332]
[1641247399796,0.00454739,3727.5,3727.4,24.574332]
[1641247399993,0.00454739,3727.5,3727.4,26.3308336]
[1641247400992,0.00454739,3727.5,3727.4,24.574332]
[1641247401638,2.47875612,3729.5,3727.4,24.574332]
[1641247401639,3.63401603,3729.4,3727.5,7.85]
[1641247401838,3.63401603,3729.4,3727.4,30.663832]
[1641247401839,3.63401603,3729.4,3728.3,15.78]
[1641247402036,0.00852635,3729.0,3728.6,0.67032]
[1641247402236,3.59254238,3729.4,3728.7,0.39]
[1641247402639,0.00170527,3729.3,3728.7,0.39170527]
[1641247402841,0.00170527,3729.3,3729.1,1.23219793]
[1641247403041,4.35824,3730.3,3729.2,0.39]
[1641247403240,0.6703357,3730.2,3729.2,0.39]
[1641247403440,0.00397897,3729.7,3729.2,0.39]
[1641247403842,0.00341054,3729.6,3729.2,0.39]
[1641247404243,0.00284212,3729.5,3729.2,0.39]
[1641247404641,0.0022737,3729.4,3729.2,0.39]
[1641247405094,0.00170527,3729.3,3729.2,0.39]
[1641247411859,0.00170527,3729.3,3729.2,4.14]
[1641247412059,0.00170527,3729.3,3729.2,5.14]
[1641247412406,0.00170527,3729.3,3729.2,1.39]
[1641247412600,0.00170527,3729.3,3729.2,17.17]
[1641247413599,0.00170527,3729.3,3729.2,1.39]
[1641247413798,0.00170527,3729.3,3729.2,6.74]
[1641247414001,0.00170527,3729.3,3729.2,23.52]
[1641247415006,0.00170527,3729.3,3729.2,1.39]
[1641247415408,0.00170527,3729.3,3729.2,0.39]
[1641247416341,4.42076122,3730.3,3729.2,0.39]
[1641247416639,0.00511581,3730.2,3729.2,0.39]
[1641247417035,0.00454739,3730.1,3729.2,0.39]
[1641247417440,0.00397897,3730.0,3729.2,0.39]
[1641247417840,3.6879,3730.3,3729.2,0.39]
[1641247417841,0.00341054,3729.9,3729.2,0.39]
[1641247418046,0.00341054,3729.9,3729.2,2.12294783]
[1641247418241,0.00284212,3729.8,3729.2,2.12294783]
[1641247418641,0.0022737,3729.7,3729.2,2.12294783]
[1641247419141,0.00170527,3729.6,3729.2,2.12294783]
[1641247419541,0.00113685,3729.5,3729.2,2.12294783]
[1641247419991,0.15143776,3729.7,3729.4,2.03294783]
[1641247420391,0.00170527,3729.6,3729.5,26.77318393]
[1641247421597,0.00170527,3729.6,3729.5,26.77751349]
[1641247423844,0.00170527,3729.6,3729.5,27.07751349]
[1641247424343,0.00170527,3729.6,3729.5,26.77751349]
[1641247427046,0.00170527,3729.6,3729.5,27.07751349]
[1641247427792,0.00170527,3729.6,3729.5,27.46751349]
[1641247439042,0.00170527,3729.6,3729.5,0.39432956]
[1641247439242,0.00170527,3729.6,3729.5,0.00432956]
[1641247440047,0.00170527,3729.6,3729.5,0.01293356]
[1641247441355,0.00170527,3729.6,3729.5,0.00432956]
[1641247446838,0.15314303,3729.6,3729.5,0.00432956]
[1641247450402,0.15143776,3729.6,3729.5,0.00432956]
[1641247454056,3.26244046,3729.9,3729.6,8.52022]
[1641247454361,0.06437754,3730.3,3730.0,15.78]
[1641247454554,0.06437754,3730.3,3730.2,23.64272748]
[1641247454753,2.11403725,3731.7,3730.3,7.86422246]
[1641247454953,2.11403725,3731.7,3731.1,0.01206187]
[1641247455154,0.01307374,3731.6,3731.4,0.66986]
[1641247455353,0.01307374,3731.6,3731.5,0.39]
[1641247455555,5.288,3732.8,3731.5,0.39]
[1641247455556,3.54096771,3732.4,3731.5,0.39]
[1641247455758,3.54096771,3732.4,3731.7,1.36331606]
[1641247455955,3.54096771,3732.4,3731.7,1.66331606]
[1641247456555,3.49096771,3732.7,3731.7,1.66331606]
[1641247456960,3.51029411,3732.7,3731.7,1.66331606]
[1641247457410,3.41029411,3732.7,3731.9,0.66985]
[1641247457703,0.0193264,3732.7,3731.9,0.66985]
[1641247458102,0.0193264,3732.7,3731.7,1.66331606]
[1641247458506,0.0193264,3732.7,3731.8,2.89941528]
[1641247458705,0.0193264,3732.7,3731.8,3.85661528]
[1641247459008,0.0193264,3732.7,3731.8,1.3472]
[1641247459610,0.0193264,3732.7,3732.0,0.66983]
[1641247459805,0.0193264,3732.7,3732.1,0.39]
[1641247460007,0.0193264,3732.7,3731.7,1.80151603]
[1641247460008,0.0193264,3732.7,3732.2,0.39]
[1641247460207,0.0193264,3732.7,3732.3,0.39]
[1641247460508,0.0193264,3732.7,3732.4,0.39]
[1641247462555,0.0193264,3732.7,3731.5,0.52819997]
[1641247463553,0.6893185,3732.7,3731.5,0.52819997]
[1641247463759,2.56947926,3732.6,3731.5,0.52819997]
[1641247463954,2.86947926,3732.6,3731.5,0.53252721]
[1641247464154,1.01818955,3732.5,3731.5,0.53252721]
[1641247464356,1.18934524,3732.3,3731.5,0.53252721]
[1641247464557,1.48934524,3732.3,3731.5,0.53252721]
[1641247464760,0.01648428,3732.2,3731.5,0.53252721]
[1641247465196,0.01591586,3732.1,3731.5,0.53252721]
[1641247465601,0.01534744,3732.0,3731.5,0.53252721]
[1641247466002,1.16897696,3732.5,3731.5,0.53252721]
[1641247466202,0.01477901,3731.9,3731.5,0.53252721]
[1641247466404,0.01762113,3732.4,3731.5,0.53252721]
[1641247466703,0.01421059,3731.8,3731.5,0.53252721]
[1641247466900,0.01705271,3732.3,3731.5,0.53252721]
[1641247467101,1.3,3732.9,3731.5,0.53252721]
[1641247467102,0.01364217,3731.7,3731.5,0.53252721]
[1641247467308,0.01648428,3732.2,3731.5,0.53252721]
[1641247467505,0.01307374,3731.6,3731.5,0.53252721]
[1641247467705,1.17043972,3733.0,3731.5,0.53252721]
[1641247467706,0.01591586,3732.1,3731.5,1.20240721]
[1641247467905,0.01307374,3731.6,3731.5,1.50240721]
[1641247468105,0.01534744,3732.0,3731.5,1.50240721]
[1641247468305,0.01307374,3731.6,3731.5,1.50240721]
[1641247468509,0.01477901,3731.9,3731.5,1.50240721]
[1641247468747,0.01307374,3731.6,3731.5,1.50240721]
[1641247468946,0.01421059,3731.8,3731.5,2.50240721]
[1641247469150,0.01307374,3731.6,3731.5,2.50240721]
[1641247469350,0.01364217,3731.7,3731.5,2.50240721]
[1641247469550,0.01307374,3731.6,3731.5,2.50240721]
[1641247470955,0.01307374,3731.6,3731.5,1.50240721]
[1641247471555,0.01307374,3731.6,3731.5,0.83252721]
[1641247473112,0.01307374,3731.6,3731.5,5.58252721]
[1641247473310,0.01307374,3731.6,3731.5,0.83252721]
[1641247474010,0.01307374,3731.6,3731.5,2.62178521]
[1641247478155,0.01307374,3731.6,3731.5,2.32178521]
[1641247478355,0.01307374,3731.6,3731.5,2.18358524]
[1641247479354,0.01307374,3731.6,3731.5,0.39432724]
[1641247479755,0.01307374,3731.6,3731.5,16.17432724]
[1641247479999,0.01307374,3731.6,3731.5,1.36413724]
[1641247480601,0.01307374,3731.6,3731.5,0.69432724]
[1641247480999,0.01307374,3731.6,3731.5,0.39432724]
[1641247485749,0.01307374,3731.6,3731.5,0.39791889]
[1641247492346,0.01307374,3731.6,3731.5,0.00791889]
[1641247493748,0.01307374,3731.6,3731.0,9.80180097]
[1641247494151,0.01250532,3731.5,3731.0,9.80180097]
[1641247494549,0.67029,3731.3,3731.0,9.80180097]
[1641247495001,0.01080005,3731.2,3731.0,9.80180097]
[1641247495406,4.61023163,3731.1,3731.0,9.80180097]
[1641247495606,5.91023163,3731.1,3731.0,9.80180097]
[1641247496009,8.51827557,3731.1,3731.0,9.50261007]
[1641247496412,11.76827557,3731.1,3731.0,7.75732981]
[1641247496610,11.76827557,3731.1,3731.0,7.16341668]
[1641247496815,27.54827557,3731.1,3731.0,5.22453926]
[1641247497114,8.51827557,3731.1,3731.0,5.22453926]
[1641247499476,8.51827557,3731.1,3731.0,5.0612724]
[1641247500682,0.01023163,3731.1,3731.0,5.0612724]
[1641247501180,2.71023163,3731.1,3731.0,5.0612724]
[1641247503420,3.01023163,3731.1,3731.0,5.0612724]
[1641247503616,2.71023163,3731.1,3731.0,5.0612724]
[1641247504817,3.01023163,3731.1,3731.0,5.0612724]
[1641247506361,0.06432403,3731.8,3731.1,7.4]
[1641247506566,0.06432403,3731.8,3731.6,0.01293149]
[1641247506763,0.06432403,3731.8,3731.6,0.40293149]
[1641247507366,3.62346283,3732.8,3731.9,1.30687937]
[1641247507566,3.68778552,3732.8,3732.0,0.39]
[1641247507766,0.00909477,3732.7,3732.0,0.39]
[1641247508166,0.00852635,3732.6,3732.1,0.6698]
[1641247508568,0.06432269,3732.8,3732.1,0.6698]
[1641247508569,0.00795792,3732.5,3732.1,0.6698]
[1641247508968,0.0073895,3732.4,3732.1,0.6698]
[1641247509269,0.007,3733.1,3732.1,0.6698]
[1641247509270,0.00682108,3732.3,3732.1,0.6698]
[1641247509665,0.00625265,3732.2,3732.1,0.775159]
[1641247509912,0.00625265,3732.2,3732.1,1.075159]
[1641247512114,0.00625265,3732.2,3732.1,12.09082618]
[1641247512313,0.007,3733.1,3732.3,15.78]
[1641247512513,0.007,3733.1,3733.0,4.06218214]
[1641247512716,0.007,3733.1,3733.0,0.40218214]
[1641247512912,0.007,3733.1,3733.0,1.70218214]
[1641247513112,0.007,3733.1,3733.0,0.70218214]
[1641247513516,0.007,3733.1,3733.0,0.40218214]
[1641247513753,0.007,3733.1,3733.0,4.00218214]
[1641247514154,0.007,3733.1,3733.0,5.00218214]
[1641247514354,0.007,3733.1,3733.0,1.40218214]
[1641247514755,0.007,3733.1,3733.0,2.07179214]
[1641247515159,0.03064021,3733.8,3733.1,6.35]
[1641247515355,0.03064021,3733.8,3733.2,1.0596]
[1641247515555,0.00852636,3733.7,3733.3,0.39]
[1641247515956,0.00795793,3733.6,3733.3,0.39]
[1641247516154,0.00795793,3733.6,3733.4,1.04689631]
[1641247516356,0.03064021,3733.8,3733.5,0.39]
[1641247516756,0.00852636,3733.7,3733.5,0.39]
[1641247517161,0.00795793,3733.6,3733.5,0.39]
[1641247519026,0.00795793,3733.6,3733.5,0.40249794]
[1641247519223,9.683e-05,3734.0,3733.6,7.85]
[1641247519420,9.683e-05,3734.0,3733.8,15.78]
[1641247519624,9.683e-05,3734.0,3733.9,9.24]
[1641247519824,9.683e-05,3734.0,3733.9,17.47]
[1641247520121,0.00237053,3734.0,3733.9,1.69]
[1641247520320,0.00237053,3734.0,3733.9,17.48240824]
[1641247520519,0.00237053,3734.0,3733.9,16.48240824]
[1641247520720,0.00237053,3734.0,3733.9,17.48240824]
[1641247520918,0.00237053,3734.0,3733.9,16.48240824]
[1641247521159,0.00237053,3734.0,3733.9,0.70240824]
[1641247521560,0.00237053,3734.0,3733.9,4.80240824]
[1641247522061,0.00237053,3734.0,3733.9,5.80240824]
[1641247522261,0.00237053,3734.0,3733.9,21.58240824]
[1641247522468,0.08559803,3734.6,3733.9,21.58240824]
[1641247522469,0.08559803,3734.6,3734.1,15.78]
[1641247522666,0.08559803,3734.6,3734.4,0.66925]
[1641247522866,0.00284211,3734.5,3734.4,0.66925]
[1641247523068,0.00284211,3734.5,3734.4,17.83925]
[1641247523767,0.00391682,3734.5,3734.4,1.05925]
[1641247523969,0.00391682,3734.5,3734.4,0.39]
[1641247525441,0.00391682,3734.5,3733.9,0.39]
[1641247525841,0.00227369,3734.4,3733.9,0.39]
[1641247526240,0.00170527,3734.3,3733.6,3.7726]
[1641247526643,0.00107471,3734.5,3733.7,0.00170527]
[1641247526644,0.00113684,3734.2,3733.7,0.00170527]
[1641247527143,0.00227369,3734.4,3733.7,0.00170527]
[1641247527346,0.00227369,3734.4,3733.7,0.69170527]
[1641247527547,0.00170527,3734.3,3733.8,0.66948]
[1641247527744,0.00170527,3734.3,3733.8,0.67061685]
[1641247527947,0.00107471,3734.5,3733.8,1.34009685]
[1641247527948,0.00113684,3734.2,3733.8,1.34009685]
[1641247528345,0.00107471,3734.5,3733.8,1.34009685]
[1641247528346,0.00227369,3734.4,3733.8,1.34009685]
[1641247528777,0.00170527,3734.3,3733.8,1.34009685]
[1641247529177,0.00113684,3734.2,3733.8,1.34009685]
[1641247529479,0.00227369,3734.4,3733.9,0.39]
[1641247529677,0.00227369,3734.4,3734.1,1.33877]
[1641247529878,0.00170527,3734.3,3734.2,0.39]
[1641247530082,0.00170527,3734.3,3734.2,0.69]
[1641247531484,0.00170527,3734.3,3734.2,3.79]
[1641247531683,0.00170527,3734.3,3734.2,0.69]
[1641247534239,0.00275011,3734.3,3734.2,0.69]
[1641247537475,0.00275011,3734.3,3734.2,4.44]
[1641247537678,0.00275011,3734.3,3734.2,0.69]
[1641247540615,0.00275011,3734.3,3734.2,0.39]
[1641247541316,0.00275011,3734.3,3734.2,0.69]
[1641247545485,0.00275011,3734.3,3734.2,0.3]
[1641247546886,0.00275011,3734.3,3734.2,0.69]
[1641247550322,0.00275011,3734.3,3734.2,0.39]
[1641247550519,0.00275011,3734.3,3734.2,0.69]
[1641247550923,0.03834814,3734.6,3734.2,0.69]
[1641247551165,0.03834814,3734.6,3734.4,0.66941]
[1641247551365,0.00113684,3734.5,3734.4,0.66941]
[1641247551566,0.00113684,3734.5,3734.4,1.05941]
[1641247553969,0.00113684,3734.5,3734.4,1.164769]
[1641247555214,0.00209546,3734.5,3734.4,1.164769]
[1641247556820,0.00209546,3734.5,3734.4,1.464769]
[1641247561084,0.00209546,3734.5,3734.4,1.164769]
[1641247561482,0.00209546,3734.5,3734.4,0.495359]
[1641247562080,0.00209546,3734.5,3734.4,2.28889362]
[1641247562727,0.00209546,3734.5,3734.4,0.495359]
[1641247563330,0.00209546,3734.5,3734.3,1.79353462]
[1641247563529,4.8,3734.4,3734.2,1.89889262]
[1641247563732,5.1,3734.4,3734.2,1.89889262]
[1641247563927,8.85,3734.3,3734.2,0.24599262]
[1641247564227,9.15,3734.3,3734.2,0.24599262]
[1641247564426,6.75,3734.1,3733.9,1.61360155]
[1641247564631,8.85,3734.0,3733.9,1.61360155]
[1641247565027,9.15,3734.0,3733.9,1.55e-06]
[1641247565727,9.15,3734.0,3733.9,0.105359]
[1641247565930,7.85,3733.9,3733.7,1.8e-05]
[1641247566167,1.33985,3733.7,3733.5,0.06411967]
[1641247566375,1.93985,3733.7,3733.5,0.06411967]
[1641247566773,1.93985,3733.7,3733.5,0.105358]
[1641247566971,8.85218893,3733.6,3733.5,0.105358]
[1641247567174,0.66994,3733.1,3732.0,0.105359]
[1641247567374,0.66994,3732.6,3732.0,0.105359]
[1641247571616,0.66994,3732.6,3732.0,0.210717]
[1641247573018,3.36994,3732.6,3732.0,0.210717]
[1641247575078,3.36994,3732.6,3732.0,2.01941354]
[1641247575479,3.36994,3732.6,3732.0,2.68933354]
[1641247575977,3.36994,3732.6,3732.0,0.880637]
[1641247576886,3.36994,3732.6,3732.0,0.775278]
[1641247579033,3.36994,3732.6,3732.0,0.880637]
[1641247581672,3.36994,3732.6,3732.0,0.775279]
[1641247582377,3.36994,3732.6,3732.0,0.105359]
[1641247582982,3.36994,3732.6,3732.0,0.210718]
[1641247586317,3.36994,3732.6,3732.2,1.80869654]
[1641247586718,3.36994,3732.6,3732.3,0.01136847]
[1641247588017,3.36994,3732.6,3732.2,0.0119369]
[1641247597675,3.36994,3732.6,3732.2,1.82063344]
[1641247598671,3.36777429,3732.6,3732.2,1.82063344]
[1641247600922,3.36777429,3732.6,3732.2,0.0119369]
[1641247601222,3.36777429,3732.6,3732.1,0.01250532]
[1641247602022,2.7,3732.6,3732.1,0.01250532]
[1641247603027,2.7,3732.6,3732.4,1.80869654]
[1641247603427,2.7,3732.6,3732.5,0.01023163]
[1641247603686,2.7,3732.6,3732.5,3.10569626]
[1641247603880,2.7,3732.6,3732.5,5.91358579]
[1641247604080,3.6916,3734.3,3733.4,30.22067027]
[1641247604278,2.89237856,3734.6,3733.5,0.39]
[1641247604279,0.0558,3734.5,3733.5,0.39]
[1641247604478,0.0558,3734.5,3733.5,0.39454739]
[1641247604676,0.0558,3734.5,3733.6,0.00397897]
[1641247605280,6.12,3734.2,3733.7,0.39]
[1641247605780,6.12,3734.2,3733.8,0.00284212]
[1641247605981,6.12,3734.2,3733.9,0.39]
[1641247606280,6.12,3734.2,3734.0,1.03178499]
[1641247606482,6.12,3734.2,3734.0,1.42349026]
[1641247606679,6.12,3734.2,3734.1,0.00113685]
[1641247608946,0.03834814,3734.6,3734.2,1.33884]
[1641247609851,0.03834814,3734.6,3734.3,2.80989319]
[1641247610048,0.03834814,3734.6,3734.4,1.0]
[1641247610248,0.007,3734.9,3734.6,5.0]
[1641247610449,0.007,3734.9,3734.7,2.98637078]
[1641247610654,0.007,3734.9,3734.7,0.69]
[1641247611181,0.007,3734.9,3734.7,1.7285]
[1641247611582,0.007,3734.9,3734.7,2.0285]
[1641247611782,0.007,3734.9,3734.7,1.35925]
[1641247612184,0.007,3734.9,3734.7,0.69]
[1641247612385,0.007,3734.9,3734.7,0.39]
[1641247612788,2.707,3734.9,3734.7,0.39]
[1641247614099,2.707,3734.9,3734.1,0.00113685]
[1641247614100,0.007,3734.9,3734.1,0.00113685]
[1641247614933,0.007,3734.9,3734.1,0.10649585]
[1641247620586,1.03273178,3734.9,3734.3,1.81212606]
[1641247621182,1.03273178,3734.9,3734.3,0.66947]
[1641247622440,0.60745146,3734.9,3734.3,0.66947]
[1641247622737,0.60745146,3734.9,3734.5,1.81212606]
[1641247623345,1.27700146,3734.9,3734.5,1.81212606]
[1641247623543,1.27700146,3734.9,3734.1,0.10649585]
[1641247623544,0.60045146,3734.8,3734.3,1.81212606]
[1641247623941,0.00227369,3734.7,3734.3,1.81212606]
[1641247624140,0.60272515,3734.7,3734.3,1.81212606]
[1641247624341,0.00170527,3734.6,3734.3,1.81212606]
[1641247624640,0.00113684,3734.5,3734.3,1.81212606]
[1641247624843,5.5,3734.4,3734.1,0.10649585]
[1641247625045,0.50233027,3734.3,3734.1,0.00113685]
[1641247625444,0.50233027,3734.2,3733.8,0.00284212]
[1641247625645,0.50233027,3734.1,3733.8,0.00284212]
[1641247626279,0.50233027,3734.1,3733.6,0.00397897]
[1641247626480,0.66968,3734.3,3733.6,0.00397897]
[1641247626681,0.66968,3734.3,3733.8,1.81212606]
[1641247627082,0.66968,3734.3,3733.9,0.0022737]
[1641247628784,0.66968,3734.3,3733.9,1.81439976]
[1641247629186,0.66968,3734.3,3734.0,0.00170527]
[1641247629930,0.66968,3734.3,3733.8,0.00284212]
[1641247630733,0.66968,3734.3,3733.7,0.10876954]
[1641247631138,0.66968,3734.3,3733.8,0.00284212]
[1641247631533,0.66978,3734.1,3733.8,0.00284212]
[1641247633146,0.96978,3734.1,3733.8,0.00284212]
[1641247635389,0.96978,3734.1,3733.1,1.58561727]
[1641247635589,0.66982,3733.6,3733.1,1.58561727]
[1641247635789,0.66982,3733.6,3733.2,0.00341054]
[1641247637536,0.66982,3733.6,3733.1,1.58561727]
[1641247637537,0.66982,3733.6,3733.1,1.53606781]
[1641247637738,0.00170527,3733.5,3733.1,1.53606781]
[1641247637935,0.00170527,3733.5,3733.1,1.29559781]
[1641247638136,0.67095685,3733.4,3733.1,1.29559781]
[1641247638537,0.66982,3733.4,3733.1,1.29559781]
[1641247638735,0.66982,3733.4,3733.1,1.40095581]
[1641247640439,0.66982,3733.4,3733.1,0.105358]
[1641247641483,0.66982,3733.4,3733.1,0.11288837]
[1641247644091,0.00284212,3733.7,3733.1,0.11288837]
[1641247644387,0.00227369,3733.6,3733.1,0.11288837]
[1641247644786,0.00170527,3733.5,3733.1,0.11288837]
[1641247645240,0.00113685,3733.4,3733.1,0.11288837]
[1641247645442,0.00113685,3733.4,3733.2,0.66971]
[1641247645642,0.67481581,3734.1,3733.2,0.66971]
[1641247646046,0.00454739,3734.0,3733.1,0.41288837]
[1641247646444,0.00397896,3733.9,3733.1,0.41288837]
[1641247646645,0.00397896,3733.9,3733.1,0.11288837]
[1641247646841,0.00341054,3733.8,3733.1,0.11288837]
[1641247647245,0.00284212,3733.7,3733.4,1.80925132]
[1641247647446,0.00284212,3733.7,3733.4,2.47892132]
[1641247647649,0.00227369,3733.6,3733.4,2.47892132]
[1641247648050,0.00170527,3733.5,3733.4,2.47892132]
[1641247648902,0.00170527,3733.5,3733.4,5.56561697]
[1641247649093,0.00170527,3733.5,3733.4,13.66561697]
[1641247649493,0.00170527,3733.5,3733.4,11.85636565]
[1641247649693,0.007,3734.9,3733.4,11.85636565]
[1641247649893,0.007,3734.9,3733.8,0.66946]
[1641247650094,0.007,3734.9,3734.3,0.66946]
[1641247650095,0.0073895,3734.8,3734.3,0.66946]
[1641247650494,0.00682108,3734.7,3734.3,0.66946]
[1641247650894,0.00625266,3734.6,3734.3,0.66946]
[1641247651294,0.00568423,3734.5,3734.3,0.66946]
[1641247651698,0.00511581,3734.4,3734.2,1.33891]
[1641247652099,0.00454739,3734.3,3734.2,1.33891]
[1641247652740,0.00454739,3734.3,3733.9,1.33903]
[1641247653146,0.007,3734.9,3733.9,1.33903]
[1641247653147,0.00397896,3734.2,3733.9,1.33903]
[1641247653545,0.007,3734.9,3733.9,1.33903]
[1641247653546,0.00341054,3734.1,3733.9,1.33903]
[1641247653947,0.00284212,3734.0,3733.9,1.33903]
[1641247654346,0.00568423,3734.0,3733.9,1.33903]
[1641247656187,0.00568423,3734.0,3733.9,3.64125244]
[1641247657191,0.00568423,3734.0,3733.9,1.33903]
[1641247657585,0.62524423,3734.8,3733.9,1.33903]
[1641247657787,0.62524423,3734.8,3734.0,0.66957]
[1641247657985,0.00113685,3734.7,3734.0,0.66957]
[1641247658187,0.00113685,3734.7,3734.1,0.00227369]
[1641247659188,0.00113685,3734.7,3734.2,0.66955]
[1641247659587,0.00113685,3734.7,3734.3,0.00113684]
[1641247660435,0.66958,3734.6,3734.3,0.00113684]
[1641247660833,0.66958,3734.6,3734.0,0.00284211]
[1641247661033,0.66958,3734.6,3733.6,0.00511581]
[1641247661234,0.61958,3734.6,3733.5,0.00568423]
[1641247661440,0.61958,3734.6,3733.6,0.00511581]
[1641247661441,0.66973,3734.1,3733.6,0.00511581]
[1641247661641,0.66973,3734.1,3733.5,0.00568423]
[1641247661937,1.33943,3734.1,3733.2,0.0073895]
[1641247662738,0.66973,3733.8,3733.2,0.01491967]
[1641247663139,0.66973,3733.8,3733.3,0.00682108]
[1641247664386,0.66973,3733.7,3733.3,0.00682108]
[1641247664893,2.00911,3734.1,3733.3,0.00682108]
[1641247665088,2.4004,3734.5,3733.3,0.00682108]
[1641247665687,0.66968,3734.0,3733.3,0.00682108]
[1641247665888,0.66968,3734.0,3733.3,1.80933946]
[1641247666288,0.61968,3734.0,3733.4,0.00625265]
[1641247667842,1.28937,3734.0,3733.4,0.00625265]
[1641247668144,0.61968,3734.0,3733.4,0.00625265]
[1641247669643,1.95916,3734.0,3733.4,0.00625265]
[1641247670047,0.66975,3733.7,3733.4,0.00625265]
[1641247670444,1.33948,3733.7,3733.4,0.00625265]
[1641247671489,0.6698,3733.5,3733.3,0.00682108]
[1641247672088,0.9698,3733.5,3733.3,0.00682108]
[1641247675844,1.25619224,3733.3,3733.1,0.105358]
[1641247676044,3.59621224,3733.3,3733.1,0.105358]
[1641247676246,3.89621224,3733.3,3733.1,0.105358]
[1641247680399,19.67621224,3733.3,3733.1,0.105358]
[1641247680998,0.3,3733.2,3733.1,0.105358]
[1641247681194,16.08,3733.2,3733.1,0.105358]
[1641247681396,16.08,3733.2,3733.1,0.10649485]
[1641247681597,17.08,3733.2,3733.1,0.10649485]
[1641247682446,1.3,3733.2,3733.1,0.10649485]
[1641247682646,3.7448007,3733.2,3733.1,0.10649485]
[1641247682848,9.3948007,3733.2,3733.1,0.10649485]
[1641247683648,7.85,3733.1,3733.0,0.09930649]
[1641247683850,11.39667878,3733.1,3733.0,0.09930649]
[1641247684249,11.39667878,3733.1,3732.4,0.06432891]
[1641247684449,0.67002,3732.8,3732.4,0.06432891]
[1641247684650,1.97002,3732.8,3732.5,0.00341054]
[1641247685250,1.97002,3732.8,3732.4,0.105359]
[1641247685251,16.17,3732.7,3732.4,0.105359]
[1641247685449,0.6702,3731.7,3731.5,0.06432989]
[1641247685650,2.06881,3731.7,3731.5,0.06432989]
[1641247685853,2.36881,3731.7,3731.6,0.00511581]
[1641247686050,2.6986,3731.7,3731.6,0.00511581]
[1641247686284,3.79137837,3731.7,3731.6,0.00511581]
[1641247686684,7.79137837,3731.7,3731.6,0.00511581]
[1641247686884,7.79137837,3731.7,3731.6,0.11047381]
[1641247687290,10.2640415,3731.7,3731.6,0.11047381]
[1641247687588,3.79137837,3731.7,3731.6,0.11047381]
[1641247687789,8.94137837,3731.7,3731.6,0.11047381]
[1641247689491,8.94137837,3731.7,3731.4,0.105359]
[1641247689693,2.56748176,3731.6,3731.4,0.105359]
[1641247690159,1.0,3731.5,3731.4,0.105359]
[1641247690556,3.78230015,3731.5,3731.4,0.10649584]
[1641247690758,7.73230015,3731.5,3731.4,0.21185384]
[1641247690961,3.78230015,3731.5,3731.4,0.21185384]
[1641247691162,19.56230015,3731.5,3731.4,0.21185384]
[1641247693365,19.56230015,3731.5,3729.7,6.12]
[1641247693366,0.14752182,3730.7,3729.7,6.12]
[1641247693573,0.67044,3730.2,3729.7,6.12]